bitfinex-derivatives/quotes_ETHF0:USTF0_20250213
["timestamp","ask_amount","ask_price","bid_price","bid_amount"]
[1739407576999,0.00549995,2724.8,2724.7,3.89820169]
[1739407577891,0.00549995,2724.8,2724.7,44.69820169]
[1739407580093,0.00549995,2724.8,2724.7,43.96421169]
[1739407580297,0.00549995,2724.8,2724.7,3.16421169]
[1739407580493,0.00549995,2724.8,2724.4,6.16021169]
[1739407580697,0.00549995,2724.8,2724.7,0.73399]
[1739407581196,0.00549995,2724.8,2724.4,6.16021169]
[1739407581197,0.59939995,2724.8,2724.4,2.996]
[1739407581396,3.2078,2724.6,2724.1,3.16421169]
[1739407581604,1.85675,2724.5,2724.3,0.73407]
[1739407581793,1.1227,2724.5,2724.1,3.16421169]
[1739407582402,1.85674,2724.5,2724.3,0.73409]
[1739407582595,1.1227,2724.5,2724.4,0.73407]
[1739407582795,1.1227,2724.5,2724.1,3.16421169]
[1739407582997,0.73408,2724.4,2724.2,0.73411]
[1739407583204,0.73408,2724.4,2724.1,3.16421169]
[1739407583205,1.1227,2724.5,2723.9,40.8]
[1739407583406,0.73413,2724.2,2723.9,41.53419]
[1739407583602,2.2423,2724.1,2723.9,40.8]
[1739407583798,2.2423,2724.1,2723.9,41.53419]
[1739407584097,2.2423,2724.1,2723.9,40.8]
[1739407584298,2.2423,2724.1,2723.7,0.73423]
[1739407584299,3.2078,2724.0,2723.7,0.73423]
[1739407584603,3.2078,2724.0,2723.2,3.16421169]
[1739407584801,3.2078,2723.7,2723.4,0.73433]
[1739407584995,3.2078,2723.7,2723.3,40.8]
[1739407584996,1.692,2723.6,2723.3,40.8]
[1739407585197,1.692,2723.6,2723.3,41.53435]
[1739407585507,2.4263,2723.6,2723.3,40.8]
[1739407586007,2.42629,2723.6,2723.3,40.8]
[1739407586705,1.692,2723.6,2723.2,0.73437]
[1739407586908,1.692,2723.6,2722.9,7.49081169]
[1739407587200,1.692,2723.6,2723.3,0.73435]
[1739407587395,1.692,2723.6,2723.0,40.8]
[1739407587702,1.692,2723.6,2723.5,0.73431]
[1739407588607,1.692,2723.6,2723.4,0.73433]
[1739407588807,4.8998,2723.6,2723.2,3.16421169]
[1739407589105,5.6341,2723.6,2723.3,0.73436]
[1739407589806,4.8998,2723.6,2723.4,0.73432]
[1739407590807,3.804,2723.9,2723.2,6.37201169]
[1739407591008,4.53822,2723.9,2723.5,0.73429]
[1739407591210,2.42623,2723.8,2723.5,0.73429]
[1739407591396,0.73426,2723.7,2723.4,0.73432]
[1739407591809,0.73426,2723.7,2723.2,6.37201169]
[1739407592405,0.73426,2723.7,2723.5,0.73431]
[1739407592605,0.73426,2723.7,2723.5,0.73429]
[1739407593407,3.2078,2723.9,2723.5,3.16421169]
[1739407593603,1.692,2723.8,2723.7,0.73424]
[1739407593803,1.692,2723.8,2723.6,0.5731]
[1739407593996,0.73426,2723.7,2723.6,0.5731]
[1739407594196,0.73436,2723.3,2723.2,6.37201169]
[1739407594502,3.2078,2723.6,2723.0,40.8]
[1739407594702,0.73438,2723.3,2723.1,0.7344]
[1739407595008,0.73439,2723.3,2723.0,40.8]
[1739407595202,0.73439,2723.3,2723.2,0.73439]
[1739407595506,0.73438,2723.3,2723.2,3.16421169]
[1739407596102,3.21329995,2723.6,2723.2,3.16421169]
[1739407596103,0.73435,2723.4,2723.2,3.16421169]
[1739407596302,3.21329995,2723.6,2723.2,3.16421169]
[1739407596511,0.73436,2723.3,2723.2,3.16421169]
[1739407597697,0.00549995,2723.6,2723.2,3.16421169]
[1739407598010,0.00549995,2723.6,2723.5,0.73431]
[1739407598204,0.00549995,2723.6,2723.5,3.89852169]
[1739407598404,0.73977995,2723.6,2723.5,3.16421169]
[1739407598603,0.00549995,2723.6,2723.2,7.10640169]
[1739407598806,0.73431,2723.5,2723.3,0.73434]
[1739407599109,0.73431,2723.5,2723.4,0.73434]
[1739407599409,0.73433,2723.5,2723.3,0.73435]
[1739407599606,0.73436,2723.3,2723.2,3.16421169]
[1739407601309,3.21329995,2723.6,2723.0,40.8]
[1739407601514,0.73442,2723.1,2723.0,40.8]
[1739407601907,3.2078,2723.3,2723.0,40.8]
[1739407602111,1.1073,2723.5,2723.1,0.73439]
[1739407602308,0.73439,2723.3,2723.1,0.73439]
[1739407602807,0.73435,2723.4,2723.2,0.73438]
[1739407603314,4.3151,2723.5,2723.1,0.7344]
[1739407603507,0.73441,2723.2,2723.1,0.73442]
[1739407603702,1.1073,2723.5,2723.1,0.73442]
[1739407603911,0.73434,2723.4,2723.2,0.73438]
[1739407604212,1.1073,2723.5,2723.0,40.8]
[1739407604408,4.3151,2723.5,2723.0,40.8]
[1739407604612,4.3151,2723.5,2723.0,41.53443]
[1739407605008,0.73435,2723.4,2723.2,0.73437]
[1739407605316,0.00549995,2723.6,2723.0,40.8]
[1739407605611,0.73442,2723.1,2723.0,40.8]
[1739407605808,3.94222,2723.1,2723.0,40.8]
[1739407606910,0.73461,2722.4,2722.3,3.16421169]
[1739407607209,3.2078,2722.6,2721.9,3.16421169]
[1739407607418,2.42559,2722.5,2722.0,40.81022995]
[1739407607915,1.691,2722.5,2722.1,0.73468]
[1739407608115,2.4256,2722.5,2722.1,0.73467]
[1739407608410,1.691,2722.5,2722.0,40.81022995]
[1739407609113,0.5775,2722.4,2722.0,40.81022995]
[1739407609320,1.691,2722.5,2722.2,3.16421169]
[1739407609612,3.94236,2722.6,2722.2,3.16421169]
[1739407609812,1.691,2722.6,2722.3,0.73463]
[1739407610015,2.42557,2722.6,2722.2,3.89886169]
[1739407610212,0.73459,2722.5,2722.2,3.89886169]
[1739407610412,1.691,2722.6,2722.2,3.16421169]
[1739407610709,1.691,2722.6,2722.0,40.81022995]
[1739407611316,0.73462,2722.4,2722.1,0.73469]
[1739407611504,1.691,2722.6,2722.0,40.81022995]
[1739407611813,3.2078,2723.3,2722.5,3.16421169]
[1739407612111,3.2078,2723.3,2722.8,3.16421169]
[1739407612319,3.2078,2723.3,2722.8,3.89869169]
[1739407612510,0.73444,2723.1,2722.8,3.16421169]
[1739407612815,0.7344,2723.2,2722.9,41.53447]
[1739407613020,0.73443,2723.1,2722.9,40.8]
[1739407613206,3.2078,2723.3,2722.9,41.53447]
[1739407613517,0.73442,2723.1,2722.9,40.8]
[1739407614014,3.2078,2723.3,2722.9,40.8]
[1739407614318,3.94217,2723.3,2723.0,0.73445]
[1739407614510,3.2078,2723.3,2722.9,40.8]
[1739407614703,0.73442,2723.2,2722.9,41.53446]
[1739407614905,0.7344,2723.2,2722.9,41.53446]
[1739407615711,3.2078,2723.3,2722.9,40.8]
[1739407615916,0.73439,2723.2,2722.9,40.8]
[1739407616115,0.73439,2723.2,2722.9,41.53446]
[1739407616320,3.2078,2723.3,2722.9,40.8]
[1739407616718,0.73445,2723.0,2722.9,40.8]
[1739407617120,2.264,2723.5,2722.9,40.8]
[1739407617426,0.73445,2723.0,2722.9,40.8]
[1739407617922,3.94225,2723.0,2722.9,40.8]
[1739407618123,0.7345,2722.8,2722.7,5.831]
[1739407618714,0.5767,2722.9,2722.7,5.831]
[1739407618919,0.5767,2722.9,2722.8,0.7345]
[1739407619117,0.573,2723.5,2722.8,3.16421169]
[1739407619328,0.573,2723.5,2723.4,0.73434]
[1739407620221,0.573,2723.5,2722.9,3.16421169]
[1739407620422,0.7344,2723.2,2723.0,0.73443]
[1739407620623,3.2078,2723.4,2722.9,3.16421169]
[1739407620927,0.73438,2723.3,2723.1,0.73441]
[1739407621130,0.573,2723.5,2722.9,3.16421169]
[1739407621623,0.573,2723.5,2723.2,3.16421169]
[1739407621820,0.00549995,2723.6,2723.5,0.73431]
[1739407622019,0.00549995,2723.6,2723.5,3.89852169]
[1739407622226,1.691,2724.0,2723.9,0.7342]
[1739407622429,1.691,2724.0,2723.9,41.5342]
[1739407622620,4.8988,2724.1,2724.0,0.73418]
[1739407622822,0.5702,2724.5,2723.9,40.8]
[1739407623022,2.42495,2724.9,2724.2,3.16421169]
[1739407623330,0.00551025,2724.8,2724.7,0.73398]
[1739407624029,0.00551025,2724.8,2724.3,3.21331025]
[1739407624226,0.58431025,2724.8,2724.6,0.734]
[1739407624524,0.58431025,2724.8,2724.3,0.00551025]
[1739407624525,0.58431025,2724.8,2724.7,0.73399]
[1739407625523,0.58431025,2724.8,2724.3,3.21331025]
[1739407625722,1.31828025,2724.8,2724.5,0.73403]
[1739407626121,1.00378056,2724.8,2724.5,0.73403]
[1739407627024,1.00378056,2724.8,2724.3,3.21331025]
[1739407627329,0.73399,2724.7,2724.3,0.00551025]
[1739407627529,0.73399,2724.7,2724.3,0.73959025]
[1739407627826,1.00378056,2724.8,2724.3,0.00551025]
[1739407628125,1.00378056,2724.8,2724.7,0.73399]
[1739407628629,2.69378056,2724.8,2724.7,0.73399]
[1739407630329,1.00378056,2724.8,2724.7,0.73399]
[1739407630527,1.00378056,2724.8,2724.3,3.21331025]
[1739407630729,0.73407,2724.4,2724.3,0.00551025]
[1739407630930,2.42407,2724.4,2724.3,0.00551025]
[1739407631226,0.73406,2724.5,2724.3,0.00551025]
[1739407631523,3.2078,2724.6,2724.3,0.00551025]
[1739407631729,1.69,2724.7,2724.6,0.73401]
[1739407632028,0.58431025,2724.8,2724.7,0.73399]
[1739407633032,0.734,2724.7,2724.4,1.29675]
[1739407633232,0.58431025,2724.8,2724.3,0.73959025]
[1739407633429,3.2078,2724.6,2724.3,0.00551025]
[1739407633633,0.58431025,2724.8,2724.7,0.73399]
[1739407634025,0.58431025,2724.8,2724.6,0.734]
[1739407634333,0.58431025,2724.8,2724.3,0.00551025]
[1739407634726,0.58431025,2724.8,2724.7,0.73399]
[1739407635028,0.58431025,2724.8,2724.3,0.00551025]
[1739407635229,0.58431025,2724.8,2724.7,0.73399]
[1739407637025,0.00551025,2724.8,2724.7,0.73399]
[1739407637333,2.5e-07,2724.8,2724.7,0.73399]
[1739407637733,2.5e-07,2724.8,2724.7,41.53399]
[1739407640232,2.5e-07,2724.8,2724.7,0.73399]
[1739407640634,2.5e-07,2724.8,2724.7,41.53399]
[1739407643637,2.5e-07,2724.8,2724.7,44.71274604]
[1739407647033,2.5e-07,2724.8,2724.7,53.89150208]
[1739407647341,1.689,2726.1,2726.0,0.73364]
[1739407648137,0.73365,2726.0,2725.7,3.17875604]
[1739407648326,1.29825,2726.0,2725.8,0.00551025]
[1739407648529,3.94146,2725.9,2725.8,0.00551025]
[1739407648730,3.2078,2725.9,2725.1,3.17875604]
[1739407648930,0.73381,2725.4,2725.3,0.73382]
[1739407649128,0.73381,2725.4,2725.1,3.17875604]
[1739407649129,0.541,2725.4,2725.1,3.17875604]
[1739407649339,0.5851,2725.3,2725.1,3.17875604]
[1739407649527,0.5851,2725.3,2725.2,0.73385]
[1739407649838,0.95972086,2725.4,2725.3,0.73383]
[1739407650230,0.73385,2725.2,2725.1,0.73387]
[1739407650426,0.73386,2725.2,2725.1,0.73387]
[1739407650631,0.73388,2725.1,2725.0,0.73942025]
[1739407650841,3.2078,2725.2,2725.0,0.00551025]
[1739407651042,3.2078,2725.2,2725.1,0.73388]
[1739407652130,3.94167,2725.2,2725.0,0.73940025]
[1739407652330,0.73388,2725.1,2725.0,0.00551025]
[1739407652634,1.689,2725.1,2725.0,0.00551025]
[1739407652839,1.689,2725.1,2725.0,0.73942025]
[1739407653140,2.10772086,2725.1,2725.0,0.73942025]
[1739407654339,1.688,2725.6,2725.0,3.94722025]
[1739407654542,1.6937,2725.9,2725.8,0.73369]
[1739407655037,1.6937,2725.9,2725.8,41.53369]
[1739407655745,1.6937,2725.9,2725.8,40.8]
[1739407655944,2.42736,2725.9,2725.8,40.8]
[1739407656444,1.6937,2725.9,2725.8,41.53369]
[1739407656945,1.1086,2725.9,2725.8,41.53369]
[1739407658246,0.549,2725.9,2725.8,41.53369]
[1739407659347,4.8958,2726.1,2725.8,40.8]
[1739407659348,3.2078,2726.1,2725.8,40.8]
[1739407659541,3.2078,2726.1,2726.0,0.73364]
[1739407660747,0.00551025,2726.3,2726.2,0.73358]
[1739407661141,0.73359,2726.2,2726.0,3.91237604]
[1739407661343,0.00551025,2726.3,2725.9,0.73366]
[1739407661541,0.00551025,2726.3,2725.8,40.8]
[1739407661750,0.73365,2726.0,2725.8,0.73367]
[1739407661941,0.00551025,2726.3,2725.7,3.17875604]
[1739407662149,0.00551025,2726.3,2726.2,0.73358]
[1739407663859,0.45369584,2726.3,2726.2,0.73358]
[1739407664248,0.45369584,2726.3,2726.0,3.17875604]
[1739407664547,0.7336,2726.2,2726.0,3.91238604]
[1739407665049,0.45369584,2726.3,2726.2,0.73358]
[1739407665938,0.00551025,2726.3,2726.2,0.73358]
[1739407667147,0.00551025,2726.3,2726.0,3.17875604]
[1739407667347,0.00551025,2726.3,2725.8,40.8]
[1739407667556,0.73363,2726.1,2725.9,0.73366]
[1739407667941,0.5729,2726.0,2725.9,0.73366]
[1739407668548,2.2453,2726.2,2725.7,43.97875604]
[1739407668751,2.2453,2726.2,2726.1,0.73361]
[1739407670354,0.00551025,2726.3,2726.2,0.73358]
[1739407670854,0.73909025,2726.3,2726.2,0.73358]
[1739407672146,0.00551025,2726.3,2726.2,0.73358]
[1739407673151,0.73358,2726.2,2726.1,0.7336]
[1739407673456,0.73908025,2726.3,2726.1,0.73359]
[1739407673854,0.73908025,2726.3,2726.1,41.53359]
[1739407674055,0.73908025,2726.3,2726.2,0.73358]
[1739407674356,0.00551025,2726.3,2726.2,0.73358]
[1739407674557,0.73358,2726.2,2725.8,3.2078]
[1739407674760,0.73358,2726.2,2726.0,0.73362]
[1739407674955,0.00551025,2726.3,2726.2,0.73358]
[1739407676150,0.00551025,2726.3,2726.0,3.17875604]
[1739407676350,0.73908025,2726.3,2726.1,0.7336]
[1739407676752,0.00551025,2726.3,2726.1,0.7336]
[1739407677254,0.73907025,2726.3,2726.1,0.7336]
[1739407677553,0.73907025,2726.3,2726.1,0.73358]
[1739407677755,0.73359,2726.2,2725.9,40.8]
[1739407678465,0.73359,2726.2,2726.0,0.73364]
[1739407678757,0.45330217,2726.3,2725.9,40.8]
[1739407679063,1.18688217,2726.3,2726.1,0.7336]
[1739407679256,0.73358,2726.2,2725.9,40.8]
[1739407679559,0.45330217,2726.3,2725.9,41.53365]
[1739407679751,0.73364,2726.0,2725.9,41.53365]
[1739407679953,0.45330217,2726.3,2725.9,40.8]
[1739407680161,0.45330217,2726.3,2726.2,0.73358]
[1739407680456,0.00551025,2726.3,2726.2,0.73358]
[1739407682859,0.73907025,2726.3,2726.2,0.73358]
[1739407683069,0.00551025,2726.3,2726.2,0.73358]
[1739407683256,0.00551025,2726.3,2726.0,3.75295604]
[1739407683450,0.00551025,2726.3,2725.9,40.8]
[1739407683660,2.83741025,2726.3,2725.8,3.2078]
[1739407683862,0.73362,2726.1,2726.0,0.73363]
[1739407684063,0.5452,2726.2,2725.8,3.2078]
[1739407684265,0.5452,2726.2,2726.1,0.73361]
[1739407684958,1.2788,2726.2,2725.8,44.0078]
[1739407685262,3.2078,2726.1,2725.8,40.8]
[1739407685459,0.73364,2726.0,2725.9,0.73365]
[1739407685766,1.72659192,2726.2,2726.1,0.73361]
[1739407685957,1.72659192,2726.2,2725.8,40.8]
[1739407686156,1.2788,2726.2,2726.0,0.73363]
[1739407686354,3.2078,2726.1,2725.8,40.8]
[1739407686659,3.2078,2726.1,2725.3,2.996]
[1739407686860,0.73373,2725.7,2725.4,0.7338]
[1739407687061,0.5595,2725.6,2725.2,3.2078]
[1739407687268,0.5676,2725.5,2725.3,41.5338]
[1739407688159,0.5676,2725.5,2725.4,0.7338]
[1739407688368,1.1101,2725.6,2725.5,0.73377]
[1739407688665,0.44779192,2725.7,2725.6,0.73374]
[1739407688867,3.65559192,2725.8,2725.7,0.73372]
[1739407689053,0.44779192,2725.8,2725.7,0.73372]
[1739407689254,1.687,2725.9,2725.7,40.8]
[1739407689658,0.73369,2725.8,2725.7,40.8]
[1739407689859,2.13479192,2725.9,2725.7,40.8]
[1739407690054,2.13479192,2725.9,2725.8,0.73369]
[1739407690862,0.44779192,2725.9,2725.8,0.73369]
[1739407691066,0.44779192,2725.9,2725.8,1.84819]
[1739407691554,3.2078,2726.0,2725.9,0.73366]
[1739407691760,0.44779192,2726.1,2725.8,1.1145]
[1739407691761,0.44779192,2726.1,2726.0,0.73364]
[1739407692065,0.00551025,2726.3,2726.2,0.73358]
[1739407699167,1.7779,2727.1,2726.2,0.73358]
[1739407699168,5.34259192,2727.0,2726.2,3.2078]
[1739407699361,5.34259192,2727.0,2726.9,0.73339]
[1739407699362,3.65559192,2727.0,2726.9,0.73339]
[1739407700766,3.65559192,2727.0,2726.8,3.17875604]
[1739407700971,1.28511,2726.9,2726.7,0.73895025]
[1739407701164,0.73342,2726.8,2726.7,0.00551025]
[1739407701368,0.5517,2726.9,2726.7,0.00551025]
[1739407701573,1.2851,2726.9,2726.7,0.73896025]
[1739407701767,1.2851,2726.9,2726.8,0.73342]
[1739407701974,0.5517,2726.9,2726.8,0.73342]
[1739407702172,0.5517,2726.9,2726.7,0.00551025]
[1739407702374,0.5517,2726.9,2726.8,0.73342]
[1739407702572,0.99257834,2726.9,2726.7,0.00551025]
[1739407702776,1.2851,2726.9,2726.7,0.73894025]
[1739407703473,0.99257834,2726.9,2726.7,0.00551025]
[1739407703674,0.73342,2726.8,2726.7,0.00551025]
[1739407707279,0.99257834,2726.9,2726.7,0.00551025]
[1739407707587,0.73342,2726.8,2726.7,0.00551025]
[1739407711285,6.0,2726.8,2725.9,4.32505604]
[1739407711499,0.73362,2726.1,2725.9,0.73364]
[1739407711790,1.1628,2726.0,2725.9,0.73364]
[1739407714684,1.1628,2726.0,2725.7,0.00551025]
[1739407714993,1.1628,2726.0,2725.7,0.73922025]
[1739407715186,0.73369,2725.8,2725.7,0.00551025]
[1739407715591,1.29698,2725.9,2725.7,0.73923025]
[1739407716389,0.5633,2725.9,2725.7,0.00551025]
[1739407716597,3.94149,2725.8,2725.7,0.00551025]
[1739407717087,4.38236834,2725.8,2725.7,0.00312763]
[1739407717286,3.94149,2725.8,2725.7,0.00312763]
[1739407717686,4.38236834,2725.8,2725.7,0.73684763]
[1739407717890,4.38236834,2725.8,2725.7,0.00312763]
[1739407719995,4.38236834,2725.8,2725.7,0.73684763]
[1739407720293,4.38236834,2725.8,2725.7,0.00312763]
[1739407723101,0.73381,2725.4,2725.2,0.73384]
[1739407723401,2.2295,2725.3,2725.2,0.73384]
[1739407727404,0.00551025,2725.5,2725.4,0.7338]
[1739407727609,1.69251025,2725.5,2725.4,0.7338]
[1739407727799,2.42628025,2725.5,2725.4,0.7338]
[1739407728003,2.42628025,2725.5,2725.4,41.5338]
[1739407728706,2.42628025,2725.5,2725.4,40.8]
[1739407729509,1.69251025,2725.5,2725.2,0.73384]
[1739407729704,0.5765,2725.4,2725.2,0.73384]
[1739407729901,1.31031,2725.4,2725.2,0.73384]
[1739407730102,1.31031,2725.4,2724.9,4.3757]
[1739407730103,3.2078,2725.3,2724.9,1.1679]
[1739407730309,0.73389,2725.1,2724.9,1.90182]
[1739407730812,3.2078,2725.3,2724.7,3.17875604]
[1739407730813,1.687,2725.0,2724.7,3.17875604]
[1739407731010,1.687,2725.0,2724.8,0.73396]
[1739407731310,1.687,2725.0,2724.9,0.73393]
[1739407732407,4.8948,2725.0,2724.7,3.74375604]
[1739407732602,4.8948,2725.0,2724.5,1.29802]
[1739407732807,0.734,2724.7,2724.5,1.29802]
[1739407733204,0.5619,2724.9,2724.5,1.29802]
[1739407733411,0.73396,2724.8,2724.5,1.29802]
[1739407733714,3.2078,2724.7,2724.5,1.29802]
[1739407734015,0.5619,2724.9,2724.5,0.564]
[1739407734211,0.734,2724.7,2724.5,0.564]
[1739407734411,3.9418,2724.7,2724.5,0.564]
[1739407734614,3.2078,2724.7,2724.4,3.17875604]
[1739407734815,0.73402,2724.6,2724.3,0.73408]
[1739407735015,0.73408,2724.4,2724.2,1.86202]
[1739407735211,1.687,2724.5,2724.1,3.17875604]
[1739407735416,3.7585,2724.4,2723.9,41.9279]
[1739407735710,0.73413,2724.2,2723.9,42.11059]
[1739407735917,0.73416,2724.1,2723.9,41.3764]
[1739407736104,3.7585,2724.4,2723.9,40.8]
[1739407736307,0.73418,2724.0,2723.9,40.8]
[1739407736507,1.687,2724.0,2723.7,0.5515]
[1739407736911,0.73421,2723.9,2723.6,1.31067]
[1739407737113,1.27651,2723.9,2723.6,42.11067]
[1739407738011,3.2078,2723.7,2723.3,0.5772]
[1739407738212,0.5423,2723.9,2723.3,0.5772]
[1739407738418,1.27651,2723.9,2723.6,0.73427]
[1739407738919,0.5423,2723.9,2723.4,40.8]
[1739407739121,0.5423,2723.9,2723.7,0.73424]
[1739407739714,0.5423,2723.9,2723.4,40.8]
[1739407739917,0.5423,2723.9,2723.6,0.73426]
[1739407740118,1.27652,2723.9,2723.6,0.73428]
[1739407741113,1.27652,2723.9,2723.1,0.5835]
[1739407741114,3.2078,2723.7,2723.1,0.5835]
[1739407741413,1.687,2723.6,2723.1,0.5835]
[1739407741617,1.687,2723.6,2723.5,0.73431]
[1739407742115,3.2078,2723.7,2723.6,0.73428]
[1739407742321,4.8948,2723.7,2723.6,0.73428]
[1739407742526,5.62907,2723.7,2723.2,3.17875604]
[1739407742721,5.62907,2723.7,2723.4,0.73431]
[1739407743023,4.8948,2723.7,2723.4,0.73431]
[1739407743221,4.8948,2723.7,2723.1,41.3835]
[1739407743529,3.2078,2723.4,2723.1,41.53442]
[1739407743728,3.2078,2723.4,2723.1,40.8]
[1739407743924,3.2078,2723.4,2717.5,0.15437773]
[1739407743925,6.38655604,2723.3,2722.3,3.17875604]
[1739407744227,3.2078,2722.9,2722.3,1.29422]
[1739407744526,3.2078,2722.6,2722.2,0.5682]
[1739407744721,0.73465,2722.3,2722.0,0.01022995]
[1739407744929,3.94245,2722.3,2722.0,0.74493995]
[1739407745129,0.73467,2722.2,2722.0,0.01022995]
[1739407745324,3.2078,2722.3,2722.0,0.01022995]
[1739407745627,3.94246,2722.3,2722.0,0.01022995]
[1739407746229,3.2078,2722.3,2722.0,0.01022995]
[1739407746527,3.94245,2722.3,2722.0,0.01022995]
[1739407746729,0.73467,2722.2,2722.0,0.01022995]
[1739407747032,0.73469,2722.1,2722.0,0.01022995]
[1739407747422,0.73467,2722.2,2722.0,0.01022995]
[1739407747825,3.94246,2722.3,2722.0,0.01022995]
[1739407748023,3.17875604,2722.1,2721.3,3.2078]
[1739407748224,9.2078,2722.3,2720.1,0.73521]
[1739407748225,0.73506,2720.8,2720.1,0.73521]
[1739407748426,3.2078,2720.6,2719.8,3.17875604]
[1739407748628,3.17875604,2720.3,2719.5,3.7495]
[1739407748833,3.2078,2719.9,2719.2,3.2078]
[1739407749025,1.69251025,2720.5,2718.6,3.2078]
[1739407749026,3.17875604,2719.3,2718.6,3.2078]
[1739407749220,3.2078,2719.1,2718.3,0.5504]
[1739407749426,4.8988,2719.1,2718.4,3.94349]
[1739407749626,0.00551025,2719.0,2718.4,3.2078]
[1739407749826,3.2078,2718.6,2717.9,3.17875604]
[1739407750127,3.2078,2718.9,2718.2,3.2078]
[1739407750326,3.2078,2718.9,2717.3,5.62112217]
[1739407750327,0.00551025,2719.0,2718.9,0.73555]
[1739407750532,0.5483,2720.4,2718.9,0.73555]
[1739407750533,3.2078,2719.8,2718.9,3.2078]
[1739407750742,3.2078,2719.8,2719.3,0.73542]
[1739407751035,3.2078,2719.8,2719.2,3.17875604]
[1739407751230,0.5483,2720.4,2719.7,3.2078]
[1739407751231,3.2078,2720.4,2719.7,3.2078]
[1739407751427,3.2078,2720.4,2719.8,3.17875604]
[1739407751628,0.00551025,2720.3,2719.8,0.00551025]
[1739407752331,1.73351025,2720.3,2719.8,0.00551025]
[1739407752631,1.73351025,2720.3,2720.0,0.73524]
[1739407752840,1.73351025,2720.3,2720.1,0.73522]
[1739407753127,0.00551025,2720.3,2720.2,0.7352]
[1739407753333,0.00551025,2720.3,2720.2,3.943]
[1739407753530,0.00551025,2720.3,2719.8,4.00420116]
[1739407753531,0.00551025,2720.3,2719.9,3.2078]
[1739407753730,3.2078,2720.9,2720.2,44.0078]
[1739407753931,3.2078,2720.9,2720.3,0.5589]
[1739407754125,3.2078,2720.9,2720.3,1.29407]
[1739407754326,1.73,2721.2,2720.2,40.8]
[1739407754327,3.2078,2720.4,2720.2,40.8]
[1739407754632,3.94297,2720.4,2720.2,40.8]
[1739407754822,3.2078,2720.4,2719.8,0.00551025]
[1739407755028,0.73528,2719.9,2719.8,2.5e-07]
[1739407755230,0.73534,2719.7,2719.6,0.00373367]
[1739407755432,3.2078,2719.7,2719.6,0.00373367]
[1739407756130,1.739,2719.7,2719.6,0.00373367]
[1739407756530,4.9468,2719.7,2719.6,0.00373367]
[1739407756929,3.2078,2720.0,2719.6,0.00373367]
[1739407757131,1.739,2719.9,2719.8,0.73531]
[1739407757530,3.8039,2720.4,2719.8,40.8]
[1739407757740,1.741,2720.3,2719.8,41.5353]
[1739407757933,1.741,2720.3,2719.8,40.8]
[1739407758334,3.2078,2719.9,2719.8,40.8]
[1739407758628,3.2078,2719.9,2719.7,0.73533]
[1739407758832,5.68399,2720.3,2719.7,0.73533]
[1739407759028,3.2078,2720.0,2719.7,0.73533]
[1739407759427,4.9488,2720.3,2719.9,0.73528]
[1739407759632,4.9488,2720.3,2719.6,0.00373367]
[1739407759932,4.9488,2720.3,2719.9,0.73527]
[1739407760136,4.9488,2720.3,2720.0,0.73524]
[1739407761037,4.9488,2720.3,2720.0,0.73525]
[1739407761336,4.9488,2720.3,2719.7,40.8]
[1739407761540,4.9488,2720.3,2720.1,0.73523]
[1739407761742,4.9488,2720.3,2720.0,0.73524]
[1739407762040,5.68399,2720.3,2719.7,40.8]
[1739407762236,4.9488,2720.3,2720.0,0.73525]
[1739407762434,4.9488,2720.3,2719.9,0.73526]
[1739407762735,4.9488,2720.3,2719.7,40.8]
[1739407762736,1.741,2720.3,2719.7,40.8]
[1739407763143,3.2078,2720.2,2719.6,0.00373367]
[1739407763437,3.94301,2720.2,2719.9,0.73528]
[1739407763833,4.48861,2720.2,2719.9,0.73528]
[1739407764240,3.7534,2720.2,2719.9,0.73528]
[1739407764439,4.48862,2720.2,2719.6,0.00373367]
[1739407764639,4.48862,2720.2,2719.9,0.73528]
[1739407764844,3.7534,2720.2,2719.6,0.00373367]
[1739407765143,0.73534,2719.7,2719.6,0.00373367]
[1739407765637,0.73539,2719.5,2719.4,0.00551025]
[1739407765834,3.94319,2719.5,2719.4,0.00551025]
[1739407766743,5.68019,2719.5,2719.4,0.00551025]
[1739407766945,4.9448,2719.5,2719.4,0.00551025]
[1739407767140,3.2078,2719.5,2719.4,0.00551025]
[1739407767438,4.9448,2719.5,2719.4,0.00551025]
[1739407768343,5.68019,2719.5,2719.4,0.00551025]
[1739407768942,5.68019,2719.5,2718.4,4.83522]
[1739407768943,4.9448,2719.5,2718.2,3.2078]
[1739407769145,3.2078,2718.9,2718.0,3.99869091]
[1739407769442,3.2078,2718.6,2718.3,0.7357]
[1739407769739,3.2078,2718.6,2718.4,0.73569]
[1739407769939,0.5966,2719.2,2718.1,3.2078]
[1739407769940,3.2078,2718.9,2718.1,3.2078]
[1739407770138,1.74,2718.6,2718.5,0.73566]
[1739407770338,4.9478,2718.6,2717.9,40.8]
[1739407770542,5.68346,2718.6,2718.2,0.73574]
[1739407770840,0.73569,2718.4,2718.1,0.73576]
[1739407771043,3.2078,2718.2,2717.9,40.8]
[1739407771236,3.2078,2718.2,2717.7,3.99869091]
[1739407771237,0.73584,2717.9,2717.6,0.7359]
[1739407771546,3.2078,2718.5,2717.8,3.2078]
[1739407771735,1.75051025,2718.8,2718.1,3.2078]
[1739407771936,0.00551025,2718.8,2718.7,0.73561]
[1739407772540,0.00551025,2718.8,2718.7,41.53561]
[1739407773038,3.8043,2719.7,2718.9,1.83886]
[1739407773235,1.747,2719.8,2719.2,3.2078]
[1739407773551,1.747,2719.8,2719.7,0.73534]
[1739407773943,1.748,2720.2,2720.1,0.73521]
[1739407774246,3.2078,2720.3,2720.1,0.73523]
[1739407774749,3.2078,2720.3,2719.9,0.73527]
[1739407775042,3.2078,2720.3,2720.1,0.73522]